[Event "*** SCC Grand Prix: Titled Tuesday Blitz"]
[Site "Chess.com"]
[Date "2020.07.21"]
[Round "5"]
[White "FabianoCaruana"]
[Black "Man-Chuk"]
[Result "1-0"]
[WhiteElo "3052"]
[BlackElo "2846"]
[TimeControl "180+1"]
[EndTime "10:56:37 PDT"]
[Termination "FabianoCaruana won by checkmate"]

1. e4 {[%clk 0:03:00.9]} 1... e5 {[%clk 0:02:56.3]} 2. Nf3 {[%clk 0:03:01.1]}
2... Nc6 {[%clk 0:02:55.6]} 3. Bb5 {[%clk 0:03:01.7]} 3... Nf6 {[%clk 0:02:55]}
4. d3 {[%clk 0:03:01.4]} 4... Bc5 {[%clk 0:02:55.2]} 5. Bxc6 {[%clk 0:03:00.5]}
5... dxc6 {[%clk 0:02:55.2]} 6. Nbd2 {[%clk 0:03:00.2]} 6... O-O {[%clk
0:02:53.3]} 7. Nc4 {[%clk 0:02:56.7]} 7... Nd7 {[%clk 0:02:51.7]} 8. O-O {[%clk
0:02:56.6]} 8... Re8 {[%clk 0:02:48.8]} 9. Kh1 {[%clk 0:02:56.7]} 9... Bf8
{[%clk 0:02:45.1]} 10. Ng1 {[%clk 0:02:56.2]} 10... Nc5 {[%clk 0:02:42.1]} 11.
Ne2 {[%clk 0:02:55.3]} 11... a5 {[%clk 0:02:19.6]} 12. Ng3 {[%clk 0:02:44.8]}
12... b5 {[%clk 0:02:11.2]} 13. Ne3 {[%clk 0:02:42.8]} 13... a4 {[%clk
0:02:11.4]} 14. Nef5 {[%clk 0:02:40.1]} 14... Re6 {[%clk 0:01:21.9]} 15. f4
{[%clk 0:02:38.3]} 15... exf4 {[%clk 0:01:19.9]} 16. Bxf4 {[%clk 0:02:39.2]}
16... Rg6 {[%clk 0:01:14.7]} 17. Nh5 {[%clk 0:02:36.3]} 17... Ne6 {[%clk
0:01:03.8]} 18. Bg3 {[%clk 0:02:36]} 18... Nd4 {[%clk 0:00:55.7]} 19. Bh4 {[%clk
0:02:10.7]} 19... f6 {[%clk 0:00:29.6]} 20. c3 {[%clk 0:02:00.4]} 20... Nxf5
{[%clk 0:00:28]} 21. exf5 {[%clk 0:02:00.5]} 21... Rh6 {[%clk 0:00:28.1]} 22.
Qg4 {[%clk 0:01:53.9]} 22... Kh8 {[%clk 0:00:23.1]} 23. d4 {[%clk 0:01:28]}
23... a3 {[%clk 0:00:22.7]} 24. b3 {[%clk 0:01:26]} 24... Qe8 {[%clk 0:00:13.8]}
25. Nf4 {[%clk 0:01:21.4]} 25... Bxf5 {[%clk 0:00:13.3]} 26. Qxf5 {[%clk
0:01:20.4]} 26... Rxh4 {[%clk 0:00:13.4]} 27. Rae1 {[%clk 0:01:18.2]} 27... Qf7
{[%clk 0:00:13.7]} 28. Re4 {[%clk 0:01:12.7]} 28... Rh6 {[%clk 0:00:12.2]} 29.
Ne6 {[%clk 0:00:57.5]} 29... Bd6 {[%clk 0:00:11.8]} 30. h3 {[%clk 0:00:54]}
30... Rh5 {[%clk 0:00:10.5]} 31. Qf3 {[%clk 0:00:49.1]} 31... Re8 {[%clk
0:00:06.9]} 32. Rfe1 {[%clk 0:00:45.4]} 32... Rg8 {[%clk 0:00:05.5]} 33. R4e3
{[%clk 0:00:31.4]} 33... c5 {[%clk 0:00:05.7]} 34. d5 {[%clk 0:00:24.5]} 34...
c4 {[%clk 0:00:06.1]} 35. bxc4 {[%clk 0:00:24.3]} 35... bxc4 {[%clk 0:00:07]}
36. Qg4 {[%clk 0:00:24.5]} 36... Qg6 {[%clk 0:00:06.5]} 37. Qxc4 {[%clk
0:00:21.3]} 37... Re5 {[%clk 0:00:05.2]} 38. Qe2 {[%clk 0:00:17]} 38... Rxd5
{[%clk 0:00:04.3]} 39. Nd4 {[%clk 0:00:16.3]} 39... Re5 {[%clk 0:00:04.4]} 40.
Nf3 {[%clk 0:00:16.7]} 40... Rxe3 {[%clk 0:00:04.4]} 41. Qxe3 {[%clk 0:00:17.6]}
41... Qg3 {[%clk 0:00:05.1]} 42. c4 {[%clk 0:00:17.5]} 42... Bf4 {[%clk
0:00:04.1]} 43. Qxa3 {[%clk 0:00:17.5]} 43... h6 {[%clk 0:00:03.8]} 44. Qd3
{[%clk 0:00:17.6]} 44... Rb8 {[%clk 0:00:02.3]} 45. a4 {[%clk 0:00:17.2]} 45...
c5 {[%clk 0:00:02.1]} 46. a5 {[%clk 0:00:17.5]} 46... Ra8 {[%clk 0:00:01.9]} 47.
a6 {[%clk 0:00:17.5]} 47... h5 {[%clk 0:00:02]} 48. Qd5 {[%clk 0:00:17.7]} 48...
Rf8 {[%clk 0:00:01.4]} 49. Qxh5+ {[%clk 0:00:17.7]} 49... Kg8 {[%clk 0:00:01.3]}
50. Qd5+ {[%clk 0:00:18.2]} 50... Kh7 {[%clk 0:00:01.7]} 51. Qxc5 {[%clk
0:00:19.1]} 51... Rd8 {[%clk 0:00:01.1]} 52. Qf5+ {[%clk 0:00:19.1]} 52... Kg8
{[%clk 0:00:01.7]} 53. Qe6+ {[%clk 0:00:19.4]} 53... Kh7 {[%clk 0:00:02.3]} 54.
Qe4+ {[%clk 0:00:20.3]} 54... Kg8 {[%clk 0:00:02.6]} 55. a7 {[%clk 0:00:20.3]}
55... Bc7 {[%clk 0:00:01.1]} 56. a8=Q {[%clk 0:00:19.5]} 56... Rxa8 {[%clk
0:00:01.4]} 57. Qxa8+ {[%clk 0:00:19.3]} 57... Kh7 {[%clk 0:00:02.3]} 58. Qe4+
{[%clk 0:00:20.2]} 58... g6 {[%clk 0:00:02.1]} 59. Qe7+ {[%clk 0:00:19.7]} 59...
Kh6 {[%clk 0:00:01.9]} 60. Qf8+ {[%clk 0:00:20]} 60... Kh5 {[%clk 0:00:01.5]}
61. Qh8# {[%clk 0:00:20.1]} 1-0

[Event "*** SCC Grand Prix: Titled Tuesday Blitz"]
[Site "Chess.com"]
[Date "2020.07.21"]
[Round "5"]
[White "antoszu"]
[Black "KobyKalavannan"]
[Result "0-1"]
[WhiteElo "2537"]
[BlackElo "2722"]
[TimeControl "180+1"]
[EndTime "10:56:38 PDT"]
[Termination "KobyKalavannan won by resignation"]

1. d4 {[%clk 0:03:00.9]} 1... Nf6 {[%clk 0:02:59.9]} 2. c4 {[%clk 0:03:01.2]}
2... g6 {[%clk 0:03:00.5]} 3. Nc3 {[%clk 0:03:01]} 3... Bg7 {[%clk 0:03:01.2]}
4. e4 {[%clk 0:03:01.2]} 4... d6 {[%clk 0:03:02]} 5. Be2 {[%clk 0:03:01.8]} 5...
O-O {[%clk 0:03:02.5]} 6. Bg5 {[%clk 0:03:02.5]} 6... Nc6 {[%clk 0:03:01.8]} 7.
d5 {[%clk 0:03:01.3]} 7... Ne5 {[%clk 0:03:02]} 8. Nf3 {[%clk 0:02:56.5]} 8...
Nxf3+ {[%clk 0:02:58.7]} 9. Bxf3 {[%clk 0:02:57.4]} 9... e5 {[%clk 0:02:58.9]}
10. Qd2 {[%clk 0:02:52]} 10... Bd7 {[%clk 0:02:35.7]} 11. O-O-O {[%clk
0:02:29.5]} 11... Qc8 {[%clk 0:02:34.9]} 12. Be2 {[%clk 0:02:10.1]} 12... a5
{[%clk 0:02:25.4]} 13. h4 {[%clk 0:02:03.1]} 13... Nh5 {[%clk 0:02:09.3]} 14.
Bxh5 {[%clk 0:01:58.7]} 14... gxh5 {[%clk 0:02:10.2]} 15. Bh6 {[%clk 0:01:55.1]}
15... f6 {[%clk 0:02:09]} 16. Bxg7 {[%clk 0:01:38.9]} 16... Kxg7 {[%clk
0:02:09.9]} 17. f4 {[%clk 0:01:39.5]} 17... Bg4 {[%clk 0:02:04.2]} 18. Rdf1
{[%clk 0:01:39.2]} 18... c6 {[%clk 0:02:02.2]} 19. fxe5 {[%clk 0:01:30.8]} 19...
dxe5 {[%clk 0:02:03.1]} 20. Kb1 {[%clk 0:01:19.4]} 20... cxd5 {[%clk 0:01:56.2]}
21. cxd5 {[%clk 0:01:18.7]} 21... a4 {[%clk 0:01:55.7]} 22. a3 {[%clk
0:01:16.3]} 22... Ra6 {[%clk 0:01:39.2]} 23. Rc1 {[%clk 0:01:12]} 23... Qc4
{[%clk 0:01:34.7]} 24. Qe3 {[%clk 0:00:59.9]} 24... Bd7 {[%clk 0:00:57.6]} 25.
Na2 {[%clk 0:00:53.9]} 25... Qb5 {[%clk 0:00:36.8]} 26. Nb4 {[%clk 0:00:53.4]}
26... Rd6 {[%clk 0:00:36.5]} 27. Rc7 {[%clk 0:00:52.6]} 27... Kh8 {[%clk
0:00:34.7]} 28. Qh6 {[%clk 0:00:51.1]} 28... Rg8 {[%clk 0:00:31.2]} 29. Rhc1
{[%clk 0:00:32.4]} 29... Qe2 {[%clk 0:00:26.9]} 30. R7c4 {[%clk 0:00:23.8]}
30... Rxg2 {[%clk 0:00:15.5]} 31. R1c2 {[%clk 0:00:22.9]} 31... Qf1+ {[%clk
0:00:12.3]} 32. Ka2 {[%clk 0:00:22.6]} 32... Rg8 {[%clk 0:00:13]} 33. Qxh5
{[%clk 0:00:19.8]} 33... Bb5 {[%clk 0:00:11.2]} 34. R4c3 {[%clk 0:00:19.9]}
34... Rd7 {[%clk 0:00:08]} 35. Rf3 {[%clk 0:00:16.6]} 35... Bc4+ {[%clk
0:00:08.1]} 36. b3 {[%clk 0:00:15.3]} 36... Bxb3+ {[%clk 0:00:04.4]} 37. Kb2
{[%clk 0:00:15.9]} 37... Qe1 {[%clk 0:00:03]} 38. Rcf2 {[%clk 0:00:04.9]} 38...
Qxe4 {[%clk 0:00:03.2]} 39. Qh6 {[%clk 0:00:03.9]} 39... Qd4+ {[%clk 0:00:03.1]}
40. Kb1 {[%clk 0:00:03.3]} 40... Qe4+ {[%clk 0:00:02.5]} 41. Kb2 {[%clk
0:00:03.4]} 41... Qd4+ {[%clk 0:00:02.7]} 42. Kb1 {[%clk 0:00:03.8]} 42... e4
{[%clk 0:00:03.3]} 43. Qxf6+ {[%clk 0:00:03.4]} 43... Qxf6 {[%clk 0:00:03.9]}
44. Rxf6 {[%clk 0:00:04.3]} 44... e3 {[%clk 0:00:04.8]} 45. Re2 {[%clk
0:00:04.9]} 45... Re8 {[%clk 0:00:04.9]} 46. Kb2 {[%clk 0:00:03]} 46... Bc4
{[%clk 0:00:04.4]} 47. Re1 {[%clk 0:00:02.9]} 47... e2 {[%clk 0:00:05]} 48. Kc3
{[%clk 0:00:03.6]} 48... Bxd5 {[%clk 0:00:04.7]} 49. Nxd5 {[%clk 0:00:04.5]}
49... Rxd5 {[%clk 0:00:05.5]} 50. Rf2 {[%clk 0:00:05.1]} 50... Rde5 {[%clk
0:00:05.9]} 51. Kb4 {[%clk 0:00:05.6]} 51... Re4+ {[%clk 0:00:06.1]} 52. Kb5
{[%clk 0:00:06.2]} 52... Rxh4 {[%clk 0:00:05.7]} 53. Kb6 {[%clk 0:00:06.7]}
53... Rhe4 {[%clk 0:00:05]} 54. Kxb7 {[%clk 0:00:07]} 54... h5 {[%clk
0:00:05.5]} 55. Kb6 {[%clk 0:00:07.6]} 55... h4 {[%clk 0:00:06]} 56. Rh2 {[%clk
0:00:08.1]} 56... Kg7 {[%clk 0:00:06.2]} 57. Kb5 {[%clk 0:00:08.5]} 57... Kh6
{[%clk 0:00:06.7]} 58. Ka5 {[%clk 0:00:03.9]} 58... Kh5 {[%clk 0:00:07.1]} 59.
Kb5 {[%clk 0:00:04.3]} 59... R8e5+ {[%clk 0:00:07.4]} 60. Kb6 {[%clk 0:00:04.2]}
60... Re3 {[%clk 0:00:08.3]} 61. Reh1 {[%clk 0:00:03.2]} 61... e1=Q {[%clk
0:00:07.2]} 62. Rxh4+ {[%clk 0:00:03.1]} 62... Qxh4 {[%clk 0:00:06.8]} 63. Rxh4+
{[%clk 0:00:04]} 63... Kxh4 {[%clk 0:00:07.7]} 0-1

[Event "*** SCC Grand Prix: Titled Tuesday Blitz"]
[Site "Chess.com"]
[Date "2020.07.21"]
[Round "5"]
[White "Shubinkirill2003"]
[Black "turayev_shahruh17"]
[Result "0-1"]
[WhiteElo "2645"]
[BlackElo "2534"]
[TimeControl "180+1"]
[EndTime "10:56:38 PDT"]
[Termination "turayev_shahruh17 won on time"]

1. e4 {[%clk 0:03:00.9]} 1... e6 {[%clk 0:02:59.9]} 2. d4 {[%clk 0:03:00.8]}
2... d5 {[%clk 0:03:00.4]} 3. Nc3 {[%clk 0:03:01.7]} 3... Bb4 {[%clk 0:03:01]}
4. e5 {[%clk 0:03:01.8]} 4... Ne7 {[%clk 0:03:01.5]} 5. a3 {[%clk 0:03:02.3]}
5... Bxc3+ {[%clk 0:03:02]} 6. bxc3 {[%clk 0:03:03.2]} 6... c5 {[%clk
0:03:02.9]} 7. Qg4 {[%clk 0:03:03.4]} 7... cxd4 {[%clk 0:03:02.8]} 8. Bd3 {[%clk
0:03:03.2]} 8... Qa5 {[%clk 0:03:01.3]} 9. Rb1 {[%clk 0:03:03.1]} 9... Nd7
{[%clk 0:02:49.1]} 10. Nf3 {[%clk 0:02:59.8]} 10... Ng6 {[%clk 0:02:38.3]} 11.
O-O {[%clk 0:02:52.3]} 11... dxc3 {[%clk 0:02:23.9]} 12. Re1 {[%clk 0:02:39.4]}
12... Nc5 {[%clk 0:02:15.4]} 13. Bb5+ {[%clk 0:02:24.7]} 13... Bd7 {[%clk
0:02:13.2]} 14. Bxd7+ {[%clk 0:02:22.8]} 14... Nxd7 {[%clk 0:02:14.1]} 15. Rxb7
{[%clk 0:02:22]} 15... Rb8 {[%clk 0:02:05.4]} 16. Rxb8+ {[%clk 0:02:14.9]} 16...
Nxb8 {[%clk 0:02:05.9]} 17. h4 {[%clk 0:02:08.9]} 17... h5 {[%clk 0:01:55.3]}
18. Qd4 {[%clk 0:01:54.8]} 18... Nc6 {[%clk 0:01:50.8]} 19. Qd3 {[%clk
0:01:52.5]} 19... O-O {[%clk 0:01:48.4]} 20. Qe2 {[%clk 0:01:47.6]} 20... Qa4
{[%clk 0:01:45.5]} 21. g3 {[%clk 0:01:34]} 21... Rb8 {[%clk 0:01:38.8]} 22. Qd3
{[%clk 0:01:20.5]} 22... Qc4 {[%clk 0:01:18.6]} 23. Qxc4 {[%clk 0:01:17]} 23...
dxc4 {[%clk 0:01:19.5]} 24. Be3 {[%clk 0:01:05.1]} 24... Rb2 {[%clk 0:01:15.9]}
25. Rc1 {[%clk 0:01:01.2]} 25... Ngxe5 {[%clk 0:01:15]} 26. Nxe5 {[%clk
0:00:59.5]} 26... Nxe5 {[%clk 0:01:15.9]} 27. Bxa7 {[%clk 0:00:57]} 27... Nd3
{[%clk 0:01:08.3]} 28. cxd3 {[%clk 0:00:48.1]} 28... cxd3 {[%clk 0:01:09.2]} 29.
Be3 {[%clk 0:00:36.5]} 29... d2 {[%clk 0:01:05]} 30. Bxd2 {[%clk 0:00:36.6]}
30... cxd2 {[%clk 0:01:03.4]} 31. Rd1 {[%clk 0:00:36.8]} 31... Ra2 {[%clk
0:00:56.1]} 32. Kf1 {[%clk 0:00:37]} 32... Kh7 {[%clk 0:00:56]} 33. Ke2 {[%clk
0:00:36.9]} 33... Kg6 {[%clk 0:00:56.5]} 34. Rxd2 {[%clk 0:00:36.3]} 34... Rxa3
{[%clk 0:00:57]} 35. Kf1 {[%clk 0:00:35]} 35... Kf6 {[%clk 0:00:57.1]} 36. Kg2
{[%clk 0:00:35.2]} 36... g5 {[%clk 0:00:54.8]} 37. hxg5+ {[%clk 0:00:35.4]}
37... Kxg5 {[%clk 0:00:55.7]} 38. Rd4 {[%clk 0:00:34.1]} 38... Ra5 {[%clk
0:00:55.9]} 39. Rc4 {[%clk 0:00:33.5]} 39... Rd5 {[%clk 0:00:55.8]} 40. Rb4
{[%clk 0:00:33.1]} 40... e5 {[%clk 0:00:56.2]} 41. Rb7 {[%clk 0:00:31.3]} 41...
f6 {[%clk 0:00:56]} 42. Rb4 {[%clk 0:00:30.4]} 42... Rd4 {[%clk 0:00:56.1]} 43.
Rb5 {[%clk 0:00:29.6]} 43... h4 {[%clk 0:00:56.1]} 44. gxh4+ {[%clk 0:00:29]}
44... Rxh4 {[%clk 0:00:57]} 45. Kf3 {[%clk 0:00:25.2]} 45... Ra4 {[%clk
0:00:56.9]} 46. Rb6 {[%clk 0:00:24.2]} 46... Ra3+ {[%clk 0:00:56.5]} 47. Kg2
{[%clk 0:00:24.2]} 47... Kf5 {[%clk 0:00:56.4]} 48. Rc6 {[%clk 0:00:23.7]} 48...
Ra2 {[%clk 0:00:56.7]} 49. Rb6 {[%clk 0:00:23.6]} 49... e4 {[%clk 0:00:55.5]}
50. Kg3 {[%clk 0:00:23.6]} 50... Ra3+ {[%clk 0:00:55.1]} 51. Kg2 {[%clk
0:00:23.9]} 51... Ke5 {[%clk 0:00:55.5]} 52. Rb5+ {[%clk 0:00:23]} 52... Kf4
{[%clk 0:00:55.8]} 53. Rb6 {[%clk 0:00:21]} 53... f5 {[%clk 0:00:55.9]} 54. Rb4
{[%clk 0:00:17.4]} 54... Ra2 {[%clk 0:00:56]} 55. Rc4 {[%clk 0:00:16.1]} 55...
Kg5 {[%clk 0:00:56.2]} 56. Kg1 {[%clk 0:00:13.3]} 56... Kg4 {[%clk 0:00:54.9]}
57. Kg2 {[%clk 0:00:12.7]} 57... Re2 {[%clk 0:00:55.3]} 58. Kf1 {[%clk
0:00:11.5]} 58... Kf3 {[%clk 0:00:54.2]} 59. Rc3+ {[%clk 0:00:11]} 59... e3
{[%clk 0:00:52.4]} 60. fxe3 {[%clk 0:00:11.3]} 60... Rxe3 {[%clk 0:00:53.1]} 61.
Rc8 {[%clk 0:00:08]} 61... f4 {[%clk 0:00:52.8]} 62. Ra8 {[%clk 0:00:05.3]}
62... Rb3 {[%clk 0:00:51.7]} 63. Kg1 {[%clk 0:00:05.7]} 63... Kg3 {[%clk
0:00:47.2]} 64. Rg8+ {[%clk 0:00:04.4]} 64... Kh3 {[%clk 0:00:46.8]} 65. Rh8+
{[%clk 0:00:04.3]} 65... Kg4 {[%clk 0:00:47.4]} 66. Rg8+ {[%clk 0:00:04.7]}
66... Kf3 {[%clk 0:00:47.9]} 67. Ra8 {[%clk 0:00:05.2]} 67... Rb1+ {[%clk
0:00:47.8]} 68. Kh2 {[%clk 0:00:05.5]} 68... Rf1 {[%clk 0:00:47.1]} 69. Re8
{[%clk 0:00:03.1]} 69... Kf2 {[%clk 0:00:45]} 70. Ra8 {[%clk 0:00:01.6]} 70...
Re1 {[%clk 0:00:44.7]} 0-1

[Event "*** SCC Grand Prix: Titled Tuesday Blitz"]
[Site "Chess.com"]
[Date "2020.07.21"]
[Round "5"]
[White "talaicito"]
[Black "InitiatingASC"]
[Result "1/2-1/2"]
[WhiteElo "2077"]
[BlackElo "2345"]
[TimeControl "180+1"]
[EndTime "10:56:38 PDT"]
[Termination "Game drawn by repetition"]

1. d4 {[%clk 0:03:00.9]} 1... Nf6 {[%clk 0:02:57.5]} 2. Nc3 {[%clk 0:03:01.2]}
2... e6 {[%clk 0:02:57.8]} 3. e4 {[%clk 0:03:00.8]} 3... d6 {[%clk 0:02:56.9]}
4. Bf4 {[%clk 0:02:58.4]} 4... Nbd7 {[%clk 0:02:56.4]} 5. Nf3 {[%clk 0:02:54.4]}
5... Be7 {[%clk 0:02:48.9]} 6. Bc4 {[%clk 0:02:47.8]} 6... Nh5 {[%clk
0:02:40.8]} 7. Be3 {[%clk 0:02:43.5]} 7... Nhf6 {[%clk 0:02:40]} 8. Bd3 {[%clk
0:02:39.5]} 8... e5 {[%clk 0:02:39.7]} 9. O-O {[%clk 0:02:37.9]} 9... O-O {[%clk
0:02:39.1]} 10. d5 {[%clk 0:02:15.1]} 10... Re8 {[%clk 0:02:31.8]} 11. Na4
{[%clk 0:02:13.8]} 11... Nf8 {[%clk 0:02:28.8]} 12. c4 {[%clk 0:02:13.8]} 12...
b6 {[%clk 0:02:13.7]} 13. b4 {[%clk 0:02:13.1]} 13... a5 {[%clk 0:02:12.6]} 14.
a3 {[%clk 0:02:13.4]} 14... Bd7 {[%clk 0:02:07]} 15. Nc3 {[%clk 0:02:03.5]}
15... Ng6 {[%clk 0:02:01.9]} 16. c5 {[%clk 0:01:49.6]} 16... axb4 {[%clk
0:01:57.4]} 17. axb4 {[%clk 0:01:49.1]} 17... bxc5 {[%clk 0:01:55.6]} 18. bxc5
{[%clk 0:01:40.2]} 18... Bg4 {[%clk 0:01:55.5]} 19. Rxa8 {[%clk 0:01:28.8]}
19... Qxa8 {[%clk 0:01:54.3]} 20. Qa1 {[%clk 0:01:29.6]} 20... Bxf3 {[%clk
0:01:49.3]} 21. Qxa8 {[%clk 0:01:23.2]} 21... Rxa8 {[%clk 0:01:48.2]} 22. gxf3
{[%clk 0:01:23.3]} 22... Nh5 {[%clk 0:01:48.3]} 23. Rd1 {[%clk 0:01:12.1]} 23...
Nhf4 {[%clk 0:01:47.7]} 24. Bf1 {[%clk 0:01:03.5]} 24... Nh4 {[%clk 0:01:41.6]}
25. Bxf4 {[%clk 0:00:58.6]} 25... exf4 {[%clk 0:01:39.5]} 26. Be2 {[%clk
0:00:56]} 26... dxc5 {[%clk 0:01:29.1]} 27. Rc1 {[%clk 0:00:49.7]} 27... Bd6
{[%clk 0:01:24.3]} 28. Bd1 {[%clk 0:00:23]} 28... Ra3 {[%clk 0:01:01.7]} 29. Kf1
{[%clk 0:00:19.6]} 29... h5 {[%clk 0:01:00.5]} 30. Ke2 {[%clk 0:00:19.1]} 30...
g5 {[%clk 0:00:49.9]} 31. Kd3 {[%clk 0:00:18.3]} 31... Be5 {[%clk 0:00:46.3]}
32. Kc4 {[%clk 0:00:18.4]} 32... Bd4 {[%clk 0:00:31]} 33. Nb5 {[%clk 0:00:15.5]}
33... Ra4+ {[%clk 0:00:31.1]} 34. Bxa4 {[%clk 0:00:13]} 34... Nxf3 {[%clk
0:00:28.9]} 35. Nxc7 {[%clk 0:00:11.3]} 35... Bxf2 {[%clk 0:00:27.5]} 36. d6
{[%clk 0:00:10.3]} 36... Ne5+ {[%clk 0:00:27.5]} 37. Kd5 {[%clk 0:00:09.5]}
37... f6 {[%clk 0:00:25.3]} 38. d7 {[%clk 0:00:09.4]} 38... Nxd7 {[%clk
0:00:22.9]} 39. Bxd7 {[%clk 0:00:10.3]} 39... Be3 {[%clk 0:00:22.4]} 40. Ne6
{[%clk 0:00:08.2]} 40... Bxc1 {[%clk 0:00:21.7]} 41. Nxc5 {[%clk 0:00:06.7]}
41... f3 {[%clk 0:00:21.2]} 42. Nd3 {[%clk 0:00:05.4]} 42... Be3 {[%clk
0:00:21.5]} 43. Ke6 {[%clk 0:00:03.3]} 43... Kg7 {[%clk 0:00:21.4]} 44. Kf5
{[%clk 0:00:03.3]} 44... f2 {[%clk 0:00:21.5]} 45. Nxf2 {[%clk 0:00:01.6]} 45...
Bxf2 {[%clk 0:00:22.4]} 46. Be8 {[%clk 0:00:01.6]} 46... h4 {[%clk 0:00:22]} 47.
h3 {[%clk 0:00:02]} 47... Bd4 {[%clk 0:00:22.1]} 48. Bh5 {[%clk 0:00:02.2]}
48... Be5 {[%clk 0:00:22.1]} 49. Ke6 {[%clk 0:00:01.7]} 49... Kh6 {[%clk
0:00:21.9]} 50. Bg4 {[%clk 0:00:01.9]} 50... Kg7 {[%clk 0:00:22.4]} 51. Bf5
{[%clk 0:00:02.1]} 51... Kf8 {[%clk 0:00:22.6]} 52. Bg4 {[%clk 0:00:02.8]} 52...
Ke8 {[%clk 0:00:23]} 53. Bf5 {[%clk 0:00:03.7]} 53... Kd8 {[%clk 0:00:23.7]} 54.
Bg4 {[%clk 0:00:04.5]} 54... Kc7 {[%clk 0:00:24.6]} 55. Bf5 {[%clk 0:00:05.2]}
55... Kb6 {[%clk 0:00:25.5]} 56. Bg4 {[%clk 0:00:05.8]} 56... Kc5 {[%clk
0:00:26.4]} 57. Bf5 {[%clk 0:00:06.6]} 57... Kd4 {[%clk 0:00:27.2]} 58. Bg4
{[%clk 0:00:07.3]} 58... Kxe4 {[%clk 0:00:27.4]} 59. Bf5+ {[%clk 0:00:08.2]}
59... Kf4 {[%clk 0:00:27.5]} 60. Bg4 {[%clk 0:00:08.4]} 60... Bd4 {[%clk
0:00:27.4]} 61. Bf5 {[%clk 0:00:08.8]} 61... Be5 {[%clk 0:00:26.5]} 62. Bg4
{[%clk 0:00:09.2]} 62... Kg3 {[%clk 0:00:26.9]} 63. Bf5 {[%clk 0:00:09.4]} 63...
Kf2 {[%clk 0:00:27.4]} 64. Bg4 {[%clk 0:00:09.7]} 64... Kg3 {[%clk 0:00:25.8]}
65. Bf5 {[%clk 0:00:09.9]} 65... Bd4 {[%clk 0:00:23.9]} 66. Bg4 {[%clk
0:00:10.2]} 66... Kf4 {[%clk 0:00:24.1]} 67. Bf5 {[%clk 0:00:10.5]} 67... Bb6
{[%clk 0:00:24.2]} 68. Bg4 {[%clk 0:00:10.9]} 68... Bd8 {[%clk 0:00:24.8]} 69.
Bf5 {[%clk 0:00:11.2]} 69... Ke3 {[%clk 0:00:24.2]} 70. Bg4 {[%clk 0:00:11.5]}
70... Ke4 {[%clk 0:00:24.8]} 71. Bf5+ {[%clk 0:00:11.8]} 71... Kf4 {[%clk
0:00:25.4]} 72. Bg4 {[%clk 0:00:12.1]} 72... Ke3 {[%clk 0:00:15]} 73. Bf5 {[%clk
0:00:11.8]} 73... Kf4 {[%clk 0:00:15.6]} 74. Bg4 {[%clk 0:00:12.1]} 74... Ba5
{[%clk 0:00:16.2]} 75. Bf5 {[%clk 0:00:12.2]} 75... Bc3 {[%clk 0:00:16.6]} 76.
Bg4 {[%clk 0:00:12.5]} 76... Kg3 {[%clk 0:00:16.8]} 77. Bf5 {[%clk 0:00:12.7]}
77... Kf4 {[%clk 0:00:16.3]} 78. Bg4 {[%clk 0:00:12.9]} 78... Ba1 {[%clk
0:00:16.2]} 79. Bf5 {[%clk 0:00:13.1]} 79... Be5 {[%clk 0:00:16.5]} 1/2-1/2

[Event "*** SCC Grand Prix: Titled Tuesday Blitz"]
[Site "Chess.com"]
[Date "2020.07.21"]
[Round "5"]
[White "Flopezin"]
[Black "HanSchut"]
[Result "0-1"]
[WhiteElo "2067"]
[BlackElo "2313"]
[TimeControl "180+1"]
[EndTime "10:56:42 PDT"]
[Termination "HanSchut won by resignation"]

1. c4 {[%clk 0:03:00.9]} 1... Nf6 {[%clk 0:02:57.8]} 2. Nc3 {[%clk 0:03:01.2]}
2... d5 {[%clk 0:02:57.7]} 3. cxd5 {[%clk 0:02:58.7]} 3... Nxd5 {[%clk
0:02:58.6]} 4. g3 {[%clk 0:02:58.5]} 4... c5 {[%clk 0:02:58.6]} 5. Bg2 {[%clk
0:02:57.7]} 5... Nc7 {[%clk 0:02:59.2]} 6. Nf3 {[%clk 0:02:56.7]} 6... Nc6
{[%clk 0:02:59]} 7. O-O {[%clk 0:02:50.7]} 7... e5 {[%clk 0:02:58.9]} 8. d3
{[%clk 0:02:50]} 8... Be7 {[%clk 0:02:58.1]} 9. b3 {[%clk 0:02:45.3]} 9... f6
{[%clk 0:02:53.3]} 10. Bb2 {[%clk 0:02:43.2]} 10... Be6 {[%clk 0:02:53.2]} 11.
Rc1 {[%clk 0:02:41.3]} 11... Qd7 {[%clk 0:02:53.2]} 12. Qd2 {[%clk 0:02:15.2]}
12... Rc8 {[%clk 0:02:50.6]} 13. Rfd1 {[%clk 0:02:14.9]} 13... O-O {[%clk
0:02:42.1]} 14. e3 {[%clk 0:01:54.4]} 14... Rfd8 {[%clk 0:02:40.7]} 15. Ne2
{[%clk 0:01:54.9]} 15... Nb4 {[%clk 0:02:19.8]} 16. d4 {[%clk 0:01:34]} 16...
exd4 {[%clk 0:02:10.1]} 17. exd4 {[%clk 0:01:34]} 17... Nxa2 {[%clk 0:02:07]}
18. Ra1 {[%clk 0:01:33.5]} 18... Bxb3 {[%clk 0:02:02.8]} 19. Re1 {[%clk
0:01:18.9]} 19... c4 {[%clk 0:01:58.1]} 20. Nc3 {[%clk 0:01:12.2]} 20... Bb4
{[%clk 0:01:48.8]} 21. Rxa2 {[%clk 0:00:44.2]} 21... Bxa2 {[%clk 0:01:48.1]} 22.
Ra1 {[%clk 0:00:45]} 22... Bb3 {[%clk 0:01:45.6]} 23. Rxa7 {[%clk 0:00:43.4]}
23... Nb5 {[%clk 0:01:36.7]} 24. Ra1 {[%clk 0:00:43.7]} 24... Nxc3 {[%clk
0:01:22.4]} 25. Bxc3 {[%clk 0:00:43.9]} 25... Bxc3 {[%clk 0:01:18.9]} 26. Qxc3
{[%clk 0:00:44.5]} 26... b5 {[%clk 0:01:17.7]} 27. d5 {[%clk 0:00:41.5]} 27...
Qxd5 {[%clk 0:01:04.9]} 28. Re1 {[%clk 0:00:38.1]} 28... Qd3 {[%clk 0:00:59.2]}
29. Qb4 {[%clk 0:00:38.3]} 29... Re8 {[%clk 0:00:43.6]} 30. Rc1 {[%clk
0:00:32.8]} 30... Rb8 {[%clk 0:00:37.7]} 31. h4 {[%clk 0:00:27.2]} 31... h6
{[%clk 0:00:37.2]} 32. h5 {[%clk 0:00:26.8]} 32... Bd1 {[%clk 0:00:28.5]} 33.
Nh4 {[%clk 0:00:21.5]} 33... Re2 {[%clk 0:00:26.5]} 34. Bf1 {[%clk 0:00:20.3]}
34... Rbe8 {[%clk 0:00:19.8]} 35. Ng2 {[%clk 0:00:15]} 35... Qd5 {[%clk
0:00:16.9]} 36. Nf4 {[%clk 0:00:11.7]} 36... Qf3 {[%clk 0:00:16.2]} 37. Bxe2
{[%clk 0:00:09.4]} 37... Bxe2 {[%clk 0:00:15]} 38. Qxb5 {[%clk 0:00:06.3]} 38...
Rf8 {[%clk 0:00:06.6]} 39. Re1 {[%clk 0:00:05.4]} 39... Bd3 {[%clk 0:00:06.9]}
40. Qd7 {[%clk 0:00:04.2]} 40... Kh8 {[%clk 0:00:02.7]} 41. Qe7 {[%clk
0:00:01.7]} 41... Rg8 {[%clk 0:00:02.9]} 42. Ng6+ {[%clk 0:00:02.3]} 42... Kh7
{[%clk 0:00:03.4]} 43. Nf8+ {[%clk 0:00:02.4]} 43... Kh8 {[%clk 0:00:03.8]} 44.
Ng6+ {[%clk 0:00:02.7]} 44... Kh7 {[%clk 0:00:04.4]} 45. Nf8+ {[%clk 0:00:03.3]}
45... Kh8 {[%clk 0:00:05.1]} 46. Qe3 {[%clk 0:00:03]} 46... Qxe3 {[%clk
0:00:03.7]} 47. Ng6+ {[%clk 0:00:03.7]} 47... Kh7 {[%clk 0:00:04.3]} 48. Rxe3
{[%clk 0:00:03]} 48... Bxg6 {[%clk 0:00:04.3]} 49. hxg6+ {[%clk 0:00:03.7]}
49... Kxg6 {[%clk 0:00:05.2]} 50. Rc3 {[%clk 0:00:04.1]} 50... Rc8 {[%clk
0:00:05.9]} 51. f4 {[%clk 0:00:04.8]} 51... Kf5 {[%clk 0:00:06.8]} 52. Kf2
{[%clk 0:00:05.5]} 52... Ke4 {[%clk 0:00:07.7]} 53. Re3+ {[%clk 0:00:06.2]}
53... Kd4 {[%clk 0:00:08.1]} 54. Ke2 {[%clk 0:00:06.9]} 54... c3 {[%clk
0:00:08.7]} 55. Re7 {[%clk 0:00:06.1]} 55... c2 {[%clk 0:00:08.4]} 56. Rd7+
{[%clk 0:00:06.6]} 56... Ke4 {[%clk 0:00:08.8]} 0-1